bitfinex-derivatives/quotes_ETHF0:USTF0_20240923
["timestamp","ask_amount","ask_price","bid_price","bid_amount"]
[1727053026247,0.38478,2598.8,2598.6,3.2078]
[1727053026451,0.38476,2598.9,2598.6,3.2078]
[1727053026649,0.38477,2598.8,2598.6,3.2078]
[1727053026955,0.38482,2598.5,2598.2,1.1964]
[1727053027162,2.59,2598.8,2598.2,1.1964]
[1727053027455,0.38482,2598.5,2598.2,1.1964]
[1727053027862,2.59,2598.8,2597.9,3.2078]
[1727053028048,0.38484,2598.4,2597.9,3.5927]
[1727053028454,0.38484,2598.4,2597.9,3.2078]
[1727053028660,0.38484,2598.4,2597.9,3.59269]
[1727053028855,2.12837,2598.7,2597.9,3.2078]
[1727053028856,1.1664,2598.7,2597.9,3.2078]
[1727053029058,0.5956,2598.7,2598.2,3.2078]
[1727053029263,0.98039,2598.7,2598.2,3.59266]
[1727053029954,0.5956,2598.7,2598.2,3.2078]
[1727053030263,0.3848,2598.6,2598.2,3.2078]
[1727053030463,0.5956,2598.7,2598.2,3.2078]
[1727053030762,3.2078,2598.9,2598.2,3.2078]
[1727053030763,0.96192,2598.9,2598.2,3.2078]
[1727053030959,0.3848,2598.6,2598.2,3.2078]
[1727053031259,3.1657,2598.8,2597.9,3.2078]
[1727053031467,0.38489,2598.0,2597.9,3.2078]
[1727053031867,0.38498,2597.4,2597.2,3.2078]
[1727053032359,0.38494,2597.7,2597.3,3.8504]
[1727053032559,0.38494,2597.7,2597.2,3.2078]
[1727053032764,3.2078,2598.0,2597.3,0.38499]
[1727053033265,3.2078,2598.0,2597.2,3.5928]
[1727053033266,0.38492,2597.8,2597.2,3.5928]
[1727053033463,0.38491,2597.9,2597.3,0.38499]
[1727053033767,3.7899,2598.1,2597.5,3.2078]
[1727053033768,1.58478,2598.1,2597.5,3.2078]
[1727053034065,1.58478,2598.1,2597.6,0.38494]
[1727053034066,1.58477,2598.1,2597.6,0.38494]
[1727053034263,1.1999,2598.1,2597.5,3.2078]
[1727053034657,0.96214,2598.3,2597.5,3.2078]
[1727053034966,4.70361224,2598.4,2597.6,0.38494]
[1727053034967,0.38487,2598.2,2597.6,0.38494]
[1727053035157,0.38488,2598.1,2597.6,0.38494]
[1727053035663,0.38488,2598.1,2597.5,3.59275]
[1727053036255,4.1699,2598.4,2597.5,3.2078]
[1727053036556,0.38488,2598.1,2597.5,3.59276]
[1727053036756,0.38485,2598.3,2597.5,3.2078]
[1727053036967,3.59264,2598.4,2597.8,0.38491]
[1727053037263,3.2078,2598.4,2597.8,3.2078]
[1727053037455,1.49581224,2598.8,2598.1,3.2078]
[1727053037657,2.06821224,2599.0,2598.2,3.2078]
[1727053037957,0.38479,2598.7,2598.2,3.59265]
[1727053038469,0.38483,2598.4,2598.2,3.2078]
[1727053038667,1.49581224,2598.8,2597.9,4.3621]
[1727053038870,7.20407636,2599.1,2598.5,3.2078]
[1727053038871,4.70361224,2599.1,2598.5,3.2078]
[1727053039163,3.2078,2599.1,2598.6,1.53909]
[1727053039366,3.2078,2599.1,2598.7,0.38478]
[1727053039560,1.49581224,2599.4,2598.8,3.2078]
[1727053039761,0.38471,2599.2,2598.8,3.2078]
[1727053040367,0.3847,2599.3,2598.8,3.59257]
[1727053040671,1.49581224,2599.5,2599.1,3.2078]
[1727053040857,1.49581224,2599.7,2599.1,3.2078]
[1727053041167,0.38465,2599.6,2599.1,3.2078]
[1727053041369,1.49581224,2599.6,2599.1,3.2078]
[1727053041566,0.38464,2599.7,2599.1,3.2078]
[1727053042472,0.38463,2599.8,2599.1,3.59252]
[1727053043066,2.59,2599.5,2599.1,3.2078]
[1727053043271,2.97467,2599.5,2599.1,3.2078]
[1727053043460,0.38466,2599.6,2599.1,3.2078]
[1727053043662,0.38465,2599.6,2599.1,3.2078]
[1727053044569,0.38466,2599.6,2599.1,3.2078]
[1727053044767,2.59,2599.8,2599.1,3.2078]
[1727053045073,0.38466,2599.6,2599.1,3.2078]
[1727053045267,0.38467,2599.5,2599.1,3.2078]
[1727053045469,0.38466,2599.6,2599.1,3.2078]
[1727053045668,0.38464,2599.7,2599.1,3.2078]
[1727053045868,2.59,2599.8,2599.1,3.59252]
[1727053046074,0.38467,2599.5,2599.1,3.2078]
[1727053046272,4.08581224,2599.8,2599.1,3.2078]
[1727053046477,2.45744224,2599.6,2599.1,3.2078]
[1727053046662,0.38471,2599.2,2598.7,3.8134]
[1727053047071,2.59,2599.5,2598.7,3.2078]
[1727053047072,0.38474,2599.1,2598.7,3.2078]
[1727053047375,0.38472,2599.2,2598.7,3.2078]
[1727053048579,1.99401798,2598.9,2598.7,3.2078]
[1727053049273,1.50525853,2598.8,2598.7,3.2078]
[1727053049576,1.99401798,2598.8,2598.7,3.2078]
[1727053049877,1.99401798,2598.8,2598.7,7.0558]
[1727053050074,2.43483636,2599.0,2598.7,7.0558]
[1727053050075,1.99401798,2598.9,2598.8,0.38477]
[1727053050372,1.99401798,2598.9,2598.7,3.2078]
[1727053050578,2.0093081,2598.8,2598.7,3.2078]
[1727053050769,2.81959636,2598.9,2598.7,3.2078]
[1727053050973,2.43483636,2598.8,2598.7,3.2078]
[1727053051276,2.43483636,2598.9,2598.7,3.2078]
[1727053051467,2.43483636,2598.8,2598.7,3.2078]
[1727053051983,2.81960636,2598.8,2598.7,3.2078]
[1727053052302,3.848,2598.8,2598.3,3.2078]
[1727053052469,2.51281041,2598.5,2598.3,3.2078]
[1727053052674,0.38482,2598.5,2598.3,3.2078]
[1727053052867,0.38482,2598.5,2598.0,1.2467]
[1727053053073,2.01062968,2598.1,2598.0,1.63159]
[1727053053479,2.01062968,2598.1,2598.0,11.48039]
[1727053053778,1.50789074,2598.3,2598.2,0.38486]
[1727053053987,2.01062968,2598.3,2598.2,3.2078]
[1727053054166,2.51328711,2598.3,2598.2,3.2078]
[1727053054566,0.38484,2598.3,2598.2,3.2078]
[1727053054769,0.38484,2598.4,2598.2,3.2078]
[1727053054976,0.38482,2598.5,2598.0,1.63158]
[1727053055276,2.01055179,2598.1,2598.0,1.2467]
[1727053055979,2.51318973,2598.2,2597.9,3.2078]
[1727053056164,0.96223,2598.0,2597.5,3.2078]
[1727053056368,2.8987826,2597.6,2597.5,3.2078]
[1727053056575,1.50812836,2597.8,2597.5,3.2078]
[1727053056977,1.50812836,2598.0,2597.5,3.2078]
[1727053057168,1.50812836,2598.0,2597.5,3.59276]
[1727053058073,1.89300836,2598.1,2597.5,3.59276]
[1727053058766,1.50812836,2598.1,2597.5,3.2078]
[1727053058966,0.38491,2597.9,2597.3,0.38499]
[1727053059273,0.38491,2597.9,2597.2,3.5928]
[1727053059665,0.38492,2597.8,2597.2,3.5928]
[1727053059978,0.38491,2597.9,2597.2,3.5928]
[1727053060373,0.38491,2597.9,2597.3,0.38499]
[1727053060574,2.59,2597.8,2597.2,3.2078]
[1727053060773,0.38497,2597.5,2597.2,3.2078]
[1727053061276,0.38498,2597.4,2597.2,3.2078]
[1727053061474,5.7978,2597.5,2596.9,3.2078]
[1727053061781,2.59,2597.2,2596.6,3.2078]
[1727053061978,0.38503,2597.1,2596.6,3.2078]
[1727053062477,0.38504,2597.0,2596.6,3.2078]
[1727053062871,1.50812836,2597.3,2596.6,3.2078]
[1727053063073,1.50812836,2597.4,2596.6,3.2078]
[1727053063472,0.38501,2597.2,2596.6,3.59289]
[1727053063675,1.50812836,2597.4,2596.6,3.2078]
[1727053063872,0.38499,2597.4,2596.7,0.38508]
[1727053064075,1.50812836,2597.5,2596.6,3.2078]
[1727053064275,0.38501,2597.2,2596.7,0.38508]
[1727053064678,4.71592836,2597.5,2596.6,3.2078]
[1727053064879,0.38498,2597.4,2596.8,0.38506]
[1727053065081,0.385,2597.3,2596.8,0.38506]
[1727053065283,0.385,2597.3,2596.7,0.38507]
[1727053065583,0.385,2597.3,2596.8,0.38506]
[1727053065786,0.38501,2597.2,2596.7,0.38507]
[1727053066175,0.38503,2597.1,2596.6,3.2078]
[1727053066585,0.38503,2597.1,2596.6,3.59289]
[1727053066880,4.71592836,2597.5,2596.6,3.2078]
[1727053067185,0.385,2597.3,2596.9,3.2078]
[1727053067379,0.38499,2597.4,2596.9,3.2078]
[1727053067583,0.38499,2597.3,2596.9,3.2078]
[1727053068979,3.2078,2597.5,2596.9,3.59285]
[1727053069179,3.2078,2597.5,2596.9,3.2078]
[1727053069490,1.2062,2597.7,2597.2,0.38499]
[1727053069698,0.38492,2597.8,2597.3,0.38499]
[1727053069883,0.38494,2597.7,2597.0,1.8098]
[1727053070192,0.38495,2597.6,2597.1,0.38501]
[1727053070390,0.38498,2597.4,2597.0,1.1847]
[1727053070583,5.7978,2597.8,2597.0,1.56973]
[1727053070790,5.7978,2597.8,2597.0,1.1847]
[1727053071085,0.38498,2597.4,2597.0,1.1847]
[1727053071987,0.38497,2597.5,2597.0,1.1847]
[1727053072188,5.7978,2597.8,2597.0,1.1847]
[1727053072389,0.38494,2597.7,2597.2,0.385]
[1727053072594,0.38494,2597.7,2597.2,3.5928]
[1727053073090,0.38495,2597.6,2597.2,3.2078]
[1727053073293,5.7978,2597.8,2597.3,0.38499]
[1727053073479,3.2078,2597.8,2597.2,3.2078]
[1727053073792,3.2078,2597.8,2597.4,0.38497]
[1727053073979,0.3849,2597.9,2597.4,0.38497]
[1727053074690,4.19158,2598.1,2597.6,0.38494]
[1727053074890,4.19158,2598.1,2597.2,3.2078]
[1727053074891,0.38486,2598.2,2597.7,0.38492]
[1727053075080,0.38486,2598.2,2597.5,3.2078]
[1727053075284,3.2078,2598.4,2597.8,0.38491]
[1727053075285,0.38485,2598.3,2597.8,0.38491]
[1727053076191,3.59264,2598.4,2597.7,0.5738]
[1727053076381,3.59264,2598.4,2597.9,0.38489]
[1727053076582,1.2526,2598.6,2597.8,3.2078]
[1727053076787,0.38482,2598.5,2597.8,3.2078]
[1727053076994,1.2526,2598.6,2598.2,0.38486]
[1727053076995,1.011,2598.6,2598.2,0.38486]
[1727053077294,0.3848,2598.6,2598.2,0.38486]
[1727053077585,0.3848,2598.6,2597.8,3.2078]
[1727053077586,0.3848,2598.6,2597.9,3.2078]
[1727053077787,0.3848,2598.6,2598.2,0.38485]
[1727053078289,5.28052836,2599.0,2598.3,3.2078]
[1727053078494,0.38476,2598.9,2598.3,3.2078]
[1727053078691,0.38476,2598.9,2598.4,1.2511]
[1727053078888,1.56715,2599.0,2598.4,1.2511]
[1727053079080,1.1824,2599.0,2598.6,0.38479]
[1727053079283,1.50812836,2599.3,2598.6,3.2078]
[1727053079493,0.38473,2599.1,2598.6,3.59259]
[1727053079887,0.5919,2599.4,2598.6,3.2078]
[1727053080092,0.3847,2599.3,2598.8,0.38476]
[1727053080287,0.38473,2599.1,2598.6,3.5926]
[1727053080591,3.2078,2599.2,2598.6,3.2078]
[1727053080894,0.38475,2598.9,2598.4,1.2511]
[1727053081390,2.59,2599.0,2598.4,1.63593]
[1727053081391,2.97475,2599.0,2598.4,1.63593]
[1727053082396,0.38475,2598.9,2598.4,1.63593]
[1727053082791,2.59,2599.0,2598.4,1.63593]
[1727053082995,2.97475,2599.0,2598.4,1.63593]
[1727053083303,2.59,2599.0,2598.4,1.63593]
[1727053083488,2.97475,2599.0,2598.4,1.63593]
[1727053084086,0.38475,2598.9,2598.4,1.2511]
[1727053084288,0.38476,2598.9,2598.4,1.2511]
[1727053084482,3.55187,2599.0,2598.2,3.2078]
[1727053084687,3.55187,2599.0,2597.9,0.6034]
[1727053084688,0.3848,2598.7,2598.0,0.38488]
[1727053084985,0.3848,2598.7,2598.1,0.38487]
[1727053085191,0.6168,2598.8,2597.9,4.4385]
[1727053085491,3.2078,2598.9,2598.2,3.2078]
[1727053085702,3.2078,2598.9,2598.4,0.38482]
[1727053085902,3.2078,2598.9,2598.2,3.2078]
[1727053086195,3.2078,2598.9,2598.5,3.59261]
[1727053086386,3.59256,2598.9,2598.5,3.2078]
[1727053086588,3.2078,2598.9,2598.5,3.2078]
[1727053087194,3.2078,2598.9,2598.6,1.1952]
[1727053088694,3.59256,2598.9,2598.6,1.1952]
[1727053088892,3.2078,2598.9,2598.6,1.1952]
[1727053089585,3.59256,2598.9,2598.5,3.2078]
[1727053089789,0.38479,2598.7,2598.2,3.2078]
[1727053089997,0.5901,2598.8,2598.0,1.1647]
[1727053090194,0.38486,2598.3,2597.9,3.2078]
[1727053091000,0.38483,2598.4,2597.6,4.3725]
[1727053091300,0.38483,2598.4,2597.8,0.38491]
[1727053092199,0.38485,2598.3,2597.7,0.38492]
[1727053092595,0.5816,2598.5,2597.7,0.38492]
[1727053092596,0.38486,2598.2,2597.7,0.38492]
[1727053092790,2.08972836,2598.5,2597.7,0.38492]
[1727053092791,0.38485,2598.3,2597.7,0.38492]
[1727053093506,0.38486,2598.2,2597.7,0.38492]
[1727053093697,1.50812836,2598.1,2597.7,0.38492]
[1727053094799,1.50812836,2598.1,2597.8,0.38492]
[1727053094990,1.50812836,2598.1,2597.7,0.38492]
[1727053095188,1.89300836,2598.1,2597.6,4.75743]
[1727053095393,1.50812836,2598.0,2597.6,4.75743]
[1727053095598,1.50812836,2598.0,2597.7,0.38493]
[1727053096196,1.50812836,2598.0,2597.6,4.3725]
[1727053096898,1.50812836,2597.9,2597.7,0.38493]
[1727053097092,1.50812836,2598.0,2597.7,0.38493]
[1727053097292,1.50812836,2597.9,2597.7,0.38493]
[1727053099303,1.50812836,2597.9,2597.6,4.75743]
[1727053099503,1.50812836,2597.9,2597.6,4.3725]
[1727053099707,1.50812836,2597.9,2597.7,0.38493]
[1727053100702,0.38488,2598.1,2597.7,0.38493]
[1727053101805,0.38489,2598.0,2597.7,0.38493]
[1727053102207,0.38488,2598.1,2597.7,0.38493]
[1727053103214,0.38489,2598.0,2597.6,4.75744]
[1727053103506,4.57025836,2598.3,2597.2,3.2078]
[1727053103507,0.96237,2597.6,2597.2,3.2078]
[1727053103707,2.1,2597.3,2597.2,3.2078]
[1727053103911,2.48497,2597.5,2597.0,0.38503]
[1727053104405,0.584,2597.6,2597.2,3.2078]
[1727053104707,0.584,2597.6,2597.3,0.38498]
[1727053105311,0.584,2597.6,2597.2,3.2078]
[1727053105503,1.89300836,2598.1,2597.7,0.38493]
[1727053105702,0.38491,2597.9,2597.5,3.59276]
[1727053106202,2.4849,2598.0,2597.5,3.59276]
[1727053106396,2.4849,2598.0,2597.6,0.38495]
[1727053107012,4.21602836,2598.2,2597.5,3.2078]
[1727053107312,0.38487,2598.1,2597.7,0.38493]
[1727053107612,0.38487,2598.1,2597.6,0.5789]
[1727053108001,0.38487,2598.1,2597.7,0.38493]
[1727053108499,0.38487,2598.1,2597.8,3.2078]
[1727053108699,3.09277,2598.2,2597.8,3.2078]
[1727053108906,4.60089836,2598.2,2597.8,3.2078]
[1727053109101,2.11602836,2598.2,2597.8,3.2078]
[1727053109410,4.73013782,2598.4,2598.1,3.2078]
[1727053109411,1.00413,2598.4,2598.1,3.2078]
[1727053110200,0.38485,2598.3,2598.1,3.2078]
[1727053110401,0.38486,2598.2,2598.1,3.2078]
[1727053110602,0.38488,2598.1,2597.8,3.2078]
[1727053111013,2.1,2598.0,2597.8,3.2078]
[1727053111306,2.1,2598.0,2597.4,3.2078]
[1727053111307,0.38496,2597.5,2597.4,3.2078]
[1727053111500,0.38496,2597.5,2597.1,3.2078]
[1727053111700,0.38496,2597.6,2597.1,3.2078]
[1727053112107,0.38496,2597.6,2597.1,3.59282]
[1727053112299,3.99283543,2597.7,2597.2,0.385]
[1727053112497,3.99283543,2597.7,2597.1,3.59281]
[1727053113105,0.38495,2597.6,2597.1,3.59281]
[1727053113308,1.50789543,2597.6,2597.2,0.38499]
[1727053116611,1.50789543,2597.6,2597.1,3.2078]
[1727053116812,1.50789543,2597.7,2597.3,0.38498]
[1727053117017,1.89283543,2597.7,2597.3,0.38498]
[1727053117212,1.50789543,2597.7,2597.2,0.385]
[1727053117408,0.38495,2597.6,2597.2,0.385]
[1727053117810,1.50789543,2597.7,2597.1,5.3078]
[1727053118012,1.50789543,2597.7,2597.3,0.38498]
[1727053118212,1.50789543,2597.7,2597.1,5.3078]
[1727053118420,1.89282543,2597.7,2597.3,0.38498]
[1727053118617,1.50789543,2597.7,2597.1,5.3078]
[1727053118820,0.38495,2597.6,2597.5,3.2078]
[1727053119015,0.38496,2597.5,2597.1,0.38501]
[1727053119213,0.38496,2597.5,2597.0,3.8311]
[1727053119214,0.38499,2597.4,2597.0,4.21613]
[1727053119618,1.89288543,2597.4,2597.0,3.8311]
[1727053119816,0.385,2597.3,2597.0,3.8311]
[1727053120021,0.385,2597.3,2597.0,3.2078]
[1727053120221,0.38501,2597.2,2597.0,3.2078]
[1727053120523,2.1,2597.1,2596.6,3.8214]
[1727053120724,2.1,2596.9,2596.6,3.2078]
[1727053120914,2.1,2596.9,2596.4,0.38512]
[1727053120915,0.38508,2596.8,2596.2,3.8344]
[1727053121125,0.38508,2596.8,2596.3,0.38514]
[1727053121610,2.47773543,2597.0,2596.5,0.3851]
[1727053121818,2.47773543,2597.0,2596.5,3.2078]
[1727053121819,2.09269543,2597.0,2596.5,3.2078]
[1727053122215,0.38506,2596.9,2596.5,3.2078]
[1727053122821,0.96985,2597.0,2596.5,3.2078]
[1727053123421,0.38505,2596.9,2596.5,3.2078]
[1727053123830,0.38507,2596.8,2596.5,3.2078]
[1727053124012,0.5848,2597.0,2596.5,3.2078]
[1727053124013,0.38506,2596.9,2596.5,3.2078]
[1727053125415,0.38507,2596.8,2596.5,3.2078]
[1727053125618,2.48509,2596.6,2596.5,3.2078]
[1727053125817,0.38512,2596.5,2596.2,3.2078]
[1727053126617,2.1,2596.6,2596.2,3.2078]
[1727053127017,2.1,2596.6,2596.2,3.59295]
[1727053127222,2.1,2596.6,2596.2,3.2078]
[1727053127827,2.1,2596.6,2596.2,3.59295]
[1727053128522,2.4851,2596.6,2596.2,3.59295]
[1727053128722,2.4851,2596.6,2596.2,3.2078]
[1727053128929,2.1,2596.8,2596.2,3.2078]
[1727053129125,0.38506,2596.9,2596.2,3.8305]
[1727053129328,0.38507,2596.8,2596.4,0.38512]
[1727053129924,0.38506,2596.9,2596.5,0.38511]
[1727053130122,0.38506,2596.9,2596.3,0.38513]
[1727053130530,0.5848,2597.0,2596.3,0.38513]
[1727053130531,0.38507,2596.8,2596.3,0.38513]
[1727053130825,0.38506,2596.9,2596.3,0.38513]
[1727053131029,0.5848,2597.0,2596.5,3.2078]
[1727053131224,0.96984,2597.0,2596.5,3.59291]
[1727053131431,0.96984,2597.0,2596.5,3.2078]
[1727053131639,0.38505,2596.9,2596.5,3.2078]
[1727053131825,0.5848,2597.0,2596.5,3.2078]
[1727053132032,0.38501,2597.2,2596.8,3.2078]
[1727053132329,0.38501,2597.2,2596.8,3.8367]
[1727053134220,0.38507,2596.8,2596.5,3.2078]
[1727053135133,0.6011,2596.9,2596.5,3.2078]
[1727053135431,3.60789543,2597.3,2596.8,3.2078]
[1727053135637,0.38501,2597.2,2596.8,3.2078]
[1727053136535,3.99289543,2597.3,2596.8,3.59286]
[1727053136943,3.99289543,2597.3,2596.9,0.5798]
[1727053137322,0.38501,2597.2,2596.9,0.5798]
[1727053137538,3.99289543,2597.3,2596.9,0.5798]
[1727053137934,0.38501,2597.2,2596.9,0.5798]
[1727053138129,0.38502,2597.1,2596.9,0.5798]
[1727053138438,0.38503,2597.1,2596.9,0.5798]
[1727053139738,0.96262,2597.0,2596.5,3.2078]
[1727053140034,0.38509,2596.6,2596.5,3.2078]
[1727053140236,2.1,2596.6,2596.2,5.012]
[1727053140538,2.1,2596.6,2596.2,5.39715]
[1727053140738,3.07047,2596.8,2596.3,0.38514]
[1727053141742,2.6854,2596.8,2596.2,5.39715]
[1727053142047,4.62294543,2597.0,2596.5,3.2078]
[1727053142226,0.38506,2596.9,2596.5,3.2078]
[1727053142432,3.11505,2597.0,2596.5,3.2078]
[1727053142730,0.38506,2596.9,2596.5,3.2078]
[1727053143131,0.38507,2596.8,2596.5,3.2078]
[1727053144335,4.23789543,2597.0,2596.5,3.2078]
[1727053144538,0.38507,2596.8,2596.5,3.2078]
[1727053144838,0.38506,2596.9,2596.5,3.2078]
[1727053145237,0.38507,2596.8,2596.5,3.2078]
[1727053145437,0.38506,2596.9,2596.5,3.2078]
[1727053145732,0.38507,2596.8,2596.5,3.2078]
[1727053145932,0.38508,2596.7,2596.5,3.2078]
[1727053146637,4.23789543,2597.0,2596.5,3.2078]
[1727053146638,0.38505,2597.0,2596.5,3.5929]
[1727053147638,0.38505,2597.0,2596.6,0.38509]
[1727053147937,0.38505,2597.0,2596.5,3.5929]
[1727053148136,0.38505,2596.9,2596.5,3.5929]
[1727053148341,1.50789543,2597.1,2596.5,3.2078]
[1727053148342,0.38507,2596.8,2596.5,3.2078]
[1727053148528,0.38509,2596.6,2596.5,3.2078]
[1727053148734,0.38509,2596.7,2596.5,3.2078]
[1727053148930,0.38509,2596.7,2596.2,5.39715]
[1727053149737,0.38508,2596.7,2596.3,0.38513]
[1727053150141,1.89295543,2596.9,2596.5,3.59291]
[1727053150435,0.38506,2596.9,2596.5,3.5929]
[1727053151437,0.38507,2596.8,2596.5,3.2078]
[1727053151636,0.38505,2596.9,2596.5,3.2078]
[1727053151833,0.38507,2596.8,2596.5,3.2078]
[1727053152033,0.38507,2596.8,2596.5,3.59291]
[1727053152434,0.38506,2596.9,2596.5,3.59291]
[1727053152835,0.38505,2596.9,2596.5,3.59291]
[1727053153034,0.38507,2596.8,2596.5,3.2078]
[1727053153537,0.38507,2596.8,2596.5,3.59291]
[1727053153734,0.38507,2596.8,2596.5,3.2078]
[1727053154238,0.38507,2596.8,2596.5,3.59291]
[1727053154940,1.50789543,2597.0,2596.5,3.2078]
[1727053155245,1.50789543,2597.0,2596.8,3.2078]
[1727053155541,1.50789543,2597.0,2596.9,1.18]
[1727053156036,0.38505,2596.9,2596.8,3.2078]
[1727053156345,1.34768,2596.9,2596.8,3.2078]
[1727053156643,5.77638,2596.9,2596.8,3.2078]
[1727053156945,0.38509,2596.7,2596.5,0.6223]
[1727053157140,2.48509,2596.7,2596.5,0.6223]
[1727053157336,2.1,2596.7,2596.5,0.6223]
[1727053158232,0.38507,2596.8,2596.5,0.6223]
[1727053159241,2.6775,2596.9,2596.5,0.6223]
[1727053159543,0.38507,2596.8,2596.5,0.6223]
[1727053161342,3.06272,2596.7,2596.4,3.2078]
[1727053161531,0.38511,2596.5,2596.4,3.2078]
[1727053162442,0.3851,2596.6,2596.4,3.2078]
[1727053162637,3.06569,2596.7,2596.4,3.2078]
[1727053162838,1.50789543,2596.5,2596.4,3.2078]
[1727053164143,2.39593782,2596.6,2596.4,3.2078]
[1727053164345,0.38511,2596.5,2596.4,3.2078]
[1727053164638,2.39594782,2596.6,2596.3,0.5543]
[1727053165839,2.01083782,2596.6,2596.3,0.93944]
[1727053166040,2.01083782,2596.6,2596.3,0.5543]
[1727053166441,2.39594782,2596.6,2596.3,0.5543]
[1727053167342,0.38512,2596.5,2596.3,0.5543]
[1727053167836,2.39595782,2596.5,2596.3,0.5543]
[1727053168041,2.01083782,2596.5,2596.3,0.5543]
[1727053168838,2.01083782,2596.5,2596.4,3.2078]
[1727053169637,8.92481782,2596.5,2596.1,3.2078]
[1727053169948,8.92481782,2596.5,2595.8,0.95296078]
[1727053169949,0.38523,2595.7,2595.3,3.2078]
[1727053170242,2.1,2595.4,2595.3,3.2078]
[1727053170447,3.61495908,2595.4,2595.3,3.2078]
[1727053172648,2.1,2595.4,2595.3,3.2078]
[1727053172940,1.51495908,2595.5,2595.3,3.2078]
[1727053172941,1.90021908,2595.5,2595.3,3.2078]
[1727053173141,0.38536,2594.8,2594.2,4.52044]
[1727053173343,0.96323,2595.3,2593.8,0.3855]
[1727053173344,3.91088252,2594.6,2593.8,0.3855]
[1727053173645,2.1,2594.2,2593.8,3.2078]
[1727053173847,2.01456144,2594.4,2594.1,3.2078]
[1727053173848,1.51092108,2594.4,2594.1,3.2078]
[1727053174039,2.60106144,2594.6,2594.1,3.2078]
[1727053174040,2.09742108,2594.6,2594.1,3.2078]
[1727053174243,2.1,2594.3,2594.1,3.2078]
[1727053174442,2.1,2594.3,2593.8,3.2078]
[1727053176054,2.1,2594.5,2593.8,3.59331]
[1727053176247,0.5865,2594.6,2594.1,3.2078]
[1727053176641,2.69,2594.7,2594.1,3.59326]
[1727053176844,1.51092108,2595.1,2594.4,3.2078]
[1727053177040,1.51092108,2595.1,2594.5,0.95899]
[1727053177041,0.5739,2595.1,2594.5,0.95899]
[1727053177247,0.5739,2595.1,2594.7,3.2078]
[1727053178050,2.48531,2595.2,2594.7,3.2078]
[1727053178645,0.38532,2595.1,2594.7,3.2078]
[1727053179149,2.48531,2595.2,2594.7,3.2078]
[1727053179854,2.1,2595.2,2594.7,3.2078]
[1727053180044,5.8774,2595.4,2594.7,3.2078]
[1727053180247,3.05864,2595.7,2595.0,3.59312]
[1727053180446,3.05864,2595.7,2595.1,0.98072]
[1727053180748,3.756,2595.8,2595.3,3.59308]
[1727053180949,0.5482,2595.8,2595.3,3.59308]
[1727053181852,0.5807,2596.1,2595.6,3.59304]
[1727053181853,2.1,2596.1,2595.6,3.59304]
[1727053182158,2.48517,2596.1,2595.7,0.5954]
[1727053182347,0.5487,2596.2,2595.7,0.5954]
[1727053182348,0.38518,2596.0,2595.7,0.5954]
[1727053183058,0.38518,2596.1,2595.7,0.5954]
[1727053183358,0.93386,2596.2,2595.7,0.5954]
[1727053183567,1.00322628,2596.5,2595.9,3.2078]
[1727053183855,3.2078,2596.7,2596.2,3.59295]
[1727053183856,4.18869,2596.7,2596.2,3.59295]
[1727053184152,4.18869,2596.7,2596.3,0.5668]
[1727053184153,0.98089,2596.7,2596.3,0.5668]
[1727053184556,0.5958,2596.7,2596.3,0.5668]
[1727053185156,0.5958,2596.7,2596.3,0.95193]
[1727053185355,0.5958,2596.7,2596.3,0.5668]
[1727053187356,0.98089,2596.7,2596.3,0.5668]
[1727053188072,0.5958,2596.7,2596.3,0.5668]
[1727053188565,0.98089,2596.7,2596.3,0.5668]
[1727053190167,0.98089,2596.7,2595.5,0.38525]
[1727053190168,1.348,2596.3,2595.5,0.38525]
[1727053190361,0.38522,2595.8,2595.4,3.2078]
[1727053190560,3.1391,2595.7,2595.4,3.2078]
[1727053190765,4.10218,2595.7,2595.1,3.2078]
[1727053190964,1.00322628,2595.4,2595.1,3.2078]
[1727053191163,1.38849628,2595.5,2595.1,3.2078]
[1727053191468,1.00322628,2595.5,2595.1,3.2078]
[1727053191869,1.00322628,2595.6,2595.1,3.59311]
[1727053192165,1.00322628,2595.6,2595.2,0.3853]
[1727053192570,1.00322628,2595.6,2595.1,3.59311]
[1727053193268,3.59322628,2595.4,2595.1,3.2078]
[1727053193468,1.38852628,2595.2,2595.1,3.2078]
[1727053193772,1.00322628,2595.2,2595.1,3.2078]
[1727053193979,5.24212628,2595.2,2595.1,3.2078]
[1727053194759,4.85682628,2595.2,2594.8,3.2078]
[1727053194972,1.38853628,2595.2,2594.8,3.2078]
[1727053197171,0.38532,2595.1,2594.8,3.2078]
[1727053197359,1.00322628,2595.2,2594.8,3.2078]
[1727053197360,1.38853628,2595.2,2594.8,3.2078]
[1727053197872,1.00322628,2595.2,2594.8,3.2078]
[1727053198073,1.00322628,2595.2,2594.8,3.59316]
[1727053198466,1.00322628,2595.3,2594.8,3.59316]
[1727053198662,1.38851628,2595.3,2594.8,3.2078]
[1727053198876,0.38531,2595.2,2594.8,3.2078]
[1727053199775,0.3853,2595.3,2594.8,3.2078]
[1727053199973,1.00322628,2595.4,2594.8,3.2078]
[1727053200172,5.77146144,2595.7,2595.1,3.2078]
[1727053200173,0.38529,2595.3,2595.1,3.2078]
[1727053200371,1.00322628,2595.6,2595.1,3.59311]
[1727053200372,0.38525,2595.6,2595.1,3.59311]
[1727053201460,2.11032628,2595.7,2594.8,1.1118]
[1727053201461,0.5491,2595.7,2595.4,3.2078]
[1727053201664,5.1149318,2596.2,2595.8,0.38521]
[1727053201665,1.00322628,2596.1,2595.8,0.38521]